Workbook

Sheet Figure 6a
A1: Chloroquine | M1: Histamine
B3: dose | C3: 0 | D3: 0.01 | E3: 0.03 | F3: 0.1 | G3: 1 | H3: 3 | N3: dose | O3: 0 | P3: 0.01 | Q3: 0.03 | R3: 0.1 | S3: 1 | T3: 3
C4: 83 | D4: 133 | E4: 12 | F4: 68 | G4: 32 | H4: 26 | O4: 93 | P4: 85 | Q4: 35 | R4: 76 | S4: 24 | T4: 2
C5: 52 | D5: 38 | E5: 65 | F5: 39 | G5: 7 | H5: 9 | O5: 43 | P5: 64 | Q5: 5 | R5: 29 | S5: 24 | T5: 7
C6: 101 | D6: 87 | E6: 63 | F6: 16 | G6: 40 | H6: 3 | O6: 123 | P6: 86 | Q6: 44 | R6: 82 | S6: 44 | T6: 0
C7: 55 | D7: 72 | E7: 31 | F7: 24 | G7: 32 | H7: 13 | O7: 49 | P7: 77 | Q7: 42 | R7: 5 | S7: 0 | T7: 22
C8: 110 | D8: 138 | E8: 3 | F8: 39 | G8: 36 | H8: 23 | O8: 28 | P8: 76 | Q8: 49 | R8: 19 | S8: 58 | T8: 11
C9: 182 | D9: 41 | E9: 68 | F9: 52 | G9: 17 | O9: 57 | P9: 24 | Q9: 8 | R9: 17 | S9: 33 | T9: 4
O10: 67 | P10: 80 | Q10: 74 | R10: 57
B11: avg | C11: =AVERAGE(C4:C9) -> 97.16666667 | D11: =AVERAGE(D4:D9) -> 84.83333333 | E11: 40.33333333 | F11: 39.66666667 | G11: 27.33333333 | H11: 14.8 | O11: 29 | P11: 64 | Q11: 69
B12: SEM | C12: =STDEV(C4:C9)/SQRT(COUNT(C4:C9)) -> 19.48917078 | D12: =STDEV(D4:D9)/SQRT(COUNT(D4:D9)) -> 17.73023156 | E12: 11.79171084 | F12: 7.662317607 | G12: 5.161825689 | H12: 4.294182111 | O12: 65 | Q12: 71
O13: 56 | Q13: 109
N15: avg | O15: =AVERAGE(O4:O13) -> 61 | P15: =AVERAGE(P4:P13) -> 69.5 | Q15: 50.6 | R15: 40.71428571 | S15: 30.5 | T15: 7.666666667
A16: 5ht | N16: SEM | O16: =STDEV(O4:O13)/SQRT(COUNT(O4:O13)) -> 9.154233993 | P16: =STDEV(P4:P13)/SQRT(COUNT(P4:P13)) -> 7.136425676 | Q16: 9.983542012 | R16: 11.61016444 | S16: 8.08187272 | T16: 3.272783389
B18: dose | C18: 0 | D18: 0.01 | E18: 0.03 | F18: 0.1 | G18: 1 | H18: 3
C19: 50 | D19: 77 | E19: 87 | F19: 117 | G19: 53 | H19: 29
C20: 77 | D20: 64 | E20: 74 | F20: 116 | G20: 64 | H20: 4
C21: 73 | D21: 147 | E21: 54 | F21: 27 | G21: 40 | H21: 39
C22: 179 | D22: 58 | E22: 52 | F22: 28 | G22: 3 | H22: 17
C23: 55 | D23: 120 | E23: 140 | F23: 67 | G23: 16 | H23: 15
C24: 150 | D24: 67 | E24: 65 | F24: 45 | G24: 24 | H24: 20
C25: 38 | F25: 44
C26: 54
B30: avg | C30: =AVERAGE(C19:C28) -> 84.5 | D30: =AVERAGE(D19:D28) -> 88.83333333 | E30: 78.66666667 | F30: 63.42857143 | G30: 33.33333333 | H30: 20.66666667
B31: SEM | C31: =STDEV(C19:C28)/SQRT(COUNT(C19:C28)) -> 18.20616065 | D31: =STDEV(D19:D28)/SQRT(COUNT(D19:D28)) -> 14.76350606 | E31: 13.36579382 | F31: 14.59428646 | G31: 9.450455603 | H31: 4.93062989

Sheet 6b
B2: Veh | C2: TPA | D2: Veh | E2: TPA
B3: HHHH | C3: HHHH | D3: HRRR | E3: HRRR
B4: 75 | C4: 0 | D4: 56 | E4: 33
B5: 50 | C5: 0 | D5: 64 | E5: 14
B6: 36 | C6: 0 | D6: 25 | E6: 31
B7: 78 | C7: 4 | D7: 53 | E7: 37
B8: 18 | C8: 0 | D8: 26 | E8: 50
B9: 58 | C9: 32 | D9: 32 | E9: 52
B10: 13 | E10: 54
A13: avg | B13: =AVERAGE(B4:B10) -> 46.85714286 | C13: =AVERAGE(C4:C10) -> 6 | D13: 42.66666667 | E13: 38.71428571
A14: SEM | B14: =STDEV(B4:B10)/SQRT(COUNT(B4:B10)) -> 9.750283443 | C14: =STDEV(C4:C10)/SQRT(COUNT(C4:C10)) -> 5.240865069 | D14: 6.936217349 | E14: 5.441088327

Sheet 6c
A1: brush test in naive C57BL/6 mice
A3: mouse | B3: Vehicle | C3: TPA023B
A4: 1 | B4: 0.8 | C4: 0.8
A5: 2 | B5: 0.9 | C5: 0.6
A6: 3 | B6: 0.9 | C6: 0.9
A7: 4 | B7: 0.9 | C7: 0.8
A8: 5 | B8: 0.8 | C8: 0.9
A9: avg | B9: =AVERAGE(B4:B8) -> 0.86 | C9: =AVERAGE(C4:C8) -> 0.8
A10: SEM | B10: =STDEV(B4:B8)/SQRT(5) -> 0.02449489743 | C10: =STDEV(C4:C8)/SQRT(5) -> 0.05477225575

Sheet 6d
A1: vonFrey (g) in naive C57BL/6 mice
A4: mouse | B4: Vehicle | C4: TPA023B
A5: 1 | B5: 3.87 | C5: 4.21
A6: 2 | B6: 4.26 | C6: 4.19
A7: 3 | B7: 4.3 | C7: 4.61
A8: 4 | B8: 3.92 | C8: 4.32
A9: 5 | B9: 4.11 | C9: 4.01
A10: avg (g) | B10: =AVERAGE(B5:B9) -> 4.092 | C10: =AVERAGE(C5:C9) -> 4.268
A11: SEM | B11: =STDEV(B5:B9)/SQRT(5) -> 0.0867986175 | C11: =STDEV(C5:C9)/SQRT(5) -> 0.09891410415

Sheet 6e
A1: Hargreaves in naive C57BL/6 mice
A4: mouse | B4: Vehicle | C4: TPA023B
A5: 1 | B5: 22.2 | C5: 23.9
A6: 2 | B6: 22.9 | C6: 22.5
A7: 3 | B7: 17.6 | C7: 19.6
A8: 4 | B8: 19 | C8: 25.4
A9: 5 | B9: 23 | C9: 25.3
A10: avg (g) | B10: 20.94 | C10: 23.34
A11: SEM | B11: 1.108873302 | C11: 1.07452315
